fUST/lending_fUST_20250215
["ID","MTS","AMOUNT","RATE_DAILY","PERIOD"]
[353097461,1739561432364,-504.1866595,0.00013662,2]
[353097462,1739561432373,-3000.0,0.0001368,2]
[353097463,1739561432384,-500.0,0.00013697,2]
[353097464,1739561432393,-500.0,0.00013697,2]
[353097465,1739561432403,-500.0,0.00013697,2]
[353097466,1739561432412,-500.0,0.00013697,2]
[353097467,1739561432421,-500.0,0.00013697,2]
[353097468,1739561432431,-500.0,0.00013697,2]
[353097469,1739561432440,-500.0,0.00013697,2]
[353097470,1739561432450,-437.81744506,0.00013697,2]
[353097471,1739561432459,-212.4206624,0.00013697,2]
[353097472,1739561432469,-507.36594075,0.00013698,2]
[353097473,1739561432480,-543.74,0.00013698,2]
[353097474,1739561432491,-500.0,0.00013698,2]
[353097475,1739561432501,-506.55284044,0.00013698,2]
[353097476,1739561432514,-563.21,0.00013698,2]
[353097477,1739561432523,-500.0,0.00013698,2]
[353097478,1739561432539,-500.0,0.00013698,2]
[353097479,1739561432550,-500.0,0.00013698,2]
[353097480,1739561432561,-500.0,0.00013698,2]
[353097481,1739561432570,-500.0,0.00013698,2]
[353097482,1739561432581,-314.69923021,0.00013698,2]
[353097483,1739561432590,-500.0,0.00013698,2]
[353097484,1739561432601,-500.0,0.00013698,2]
[353097485,1739561432612,-500.0,0.00013698,2]
[353097486,1739561432622,-502.49387424,0.00013698,2]
[353097487,1739561432632,-500.0,0.00013698,2]
[353097488,1739561432641,-458.52163954,0.00013698,2]
[353097489,1739561432651,-504.817,0.00013698,2]
[353097490,1739561432661,-502.92069297,0.00013698,2]
[353097491,1739561432670,-500.0,0.00013698,2]
[353097492,1739561432680,-505.43735776,0.00013698,2]
[353097493,1739561432690,-500.0,0.00013698,2]
[353097494,1739561432701,-502.89192412,0.00013698,2]
[353097495,1739561432711,-500.0,0.00013698,2]
[353097496,1739561432721,-500.0,0.00013698,2]
[353097497,1739561432731,-500.0,0.00013698,2]
[353097498,1739561432741,-500.0,0.00013698,2]
[353097499,1739561432751,-1305.37,0.00013698,2]
[353097500,1739561432761,-500.0,0.00013698,2]
[353097501,1739561432770,-500.0,0.00013698,2]
[353097502,1739561432781,-500.0,0.00013698,2]
[353097503,1739561432791,-500.0,0.00013698,2]
[353097504,1739561432802,-500.0,0.00013698,2]
[353097505,1739561432812,-500.0,0.00013698,2]
[353097506,1739561432821,-500.0,0.00013698,2]
[353097507,1739561432831,-500.0,0.00013698,2]
[353097508,1739561432841,-500.0,0.00013698,2]
[353097509,1739561432854,-500.0,0.00013698,2]
[353097510,1739561432869,-500.0,0.00013698,2]
[353097511,1739561432879,-964.11,0.00013698,2]
[353097512,1739561432889,-500.0,0.00013698,2]
[353097513,1739561432898,-500.0,0.00013698,2]
[353097514,1739561432909,-500.0,0.00013698,2]
[353097515,1739561432920,-500.0,0.00013698,2]
[353097516,1739561432930,-500.0,0.00013698,2]
[353097517,1739561432940,-500.0,0.00013698,2]
[353097518,1739561432950,-266.89818539,0.00013698,2]
[353097519,1739561432960,-500.0,0.00013698,2]
[353097520,1739561432972,-500.0,0.00013698,2]
[353097521,1739561432982,-500.0,0.00013698,2]
[353097522,1739561432992,-500.0,0.00013698,2]
[353097523,1739561433003,-907.82,0.00013698,2]
[353097524,1739561433012,-500.0,0.00013698,2]
[353097525,1739561433022,-500.0,0.00013698,2]
[353097526,1739561433033,-500.0,0.00013698,2]
[353097527,1739561433044,-500.0,0.00013698,2]
[353097528,1739561433054,-500.0,0.00013698,2]
[353097529,1739561433065,-500.95979856,0.00013698,2]
[353097530,1739561433075,-592.6607841,0.00013698,2]
[353097531,1739561433086,-500.0,0.00013698,2]
[353097532,1739561433096,-500.0,0.00013698,2]
[353097533,1739561433106,-500.0,0.00013698,2]
[353097534,1739561433117,-500.0,0.00013698,2]
[353097535,1739561433127,-500.0,0.00013698,2]
[353097536,1739561433138,-511.4203264,0.00013698,2]
[353097537,1739561433149,-500.0,0.00013698,2]
[353097538,1739561433161,-500.0,0.00013698,2]
[353097539,1739561433172,-500.0,0.00013698,2]
[353097540,1739561433183,-694.33,0.00013698,2]
[353097541,1739561433193,-500.0,0.00013698,2]
[353097542,1739561433204,-500.0,0.00013698,2]
[353097543,1739561433214,-742.87,0.00013698,2]
[353097544,1739561433224,-500.0,0.00013698,2]
[353097545,1739561433234,-500.0,0.00013698,2]
[353097546,1739561433244,-500.0,0.00013698,2]
[353097547,1739561433255,-500.0,0.00013698,2]
[353097548,1739561433264,-500.0,0.00013698,2]
[353097549,1739561433274,-500.0,0.00013698,2]
[353097550,1739561433285,-500.0,0.00013698,2]
[353097551,1739561433295,-500.0,0.00013698,2]
[353097552,1739561433306,-500.0,0.00013698,2]
[353097553,1739561433316,-836.7,0.00013698,2]
[353097554,1739561433326,-500.0,0.00013698,2]
[353097555,1739561433336,-501.5856704,0.00013698,2]
[353097556,1739561433346,-500.0,0.00013698,2]
[353097557,1739561433356,-502.5852276,0.00013698,2]
[353097558,1739561433368,-414.29339293,0.00013698,2]
[353097559,1739561433379,-500.0,0.00013698,2]
[353097560,1739561433389,-500.0,0.00013698,2]
[353097561,1739561433399,-500.0,0.00013698,2]
[353097562,1739561433409,-500.0,0.00013698,2]
[353097563,1739561433419,-501.81521135,0.00013698,2]
[353097564,1739561433428,-500.0,0.00013698,2]
[353097565,1739561433438,-500.0,0.00013698,2]
[353097566,1739561433447,-1364.36,0.00013698,2]
[353097567,1739561433457,-500.0,0.00013698,2]
[353097568,1739561433467,-726.02,0.00013698,2]
[353097569,1739561433477,-500.0,0.00013698,2]
[353097570,1739561433487,-500.0,0.00013698,2]
[353097571,1739561433497,-500.0,0.00013698,2]
[353097572,1739561433508,-500.0,0.00013698,2]
[353097573,1739561433522,-500.0,0.00013698,2]
[353097574,1739561433534,-500.0,0.00013698,2]
[353097575,1739561433544,-500.0,0.00013698,2]
[353097576,1739561433560,-500.0,0.00013698,2]
[353097577,1739561433572,-500.0,0.00013698,2]
[353097578,1739561433582,-259.40794356,0.00013698,2]
[353097579,1739561433594,-500.0,0.00013698,2]
[353097580,1739561433604,-502.24315677,0.00013698,2]
[353097581,1739561433614,-1519.63,0.00013698,2]
[353097582,1739561433624,-500.0,0.00013698,2]
[353097583,1739561433634,-500.0,0.00013698,2]
[353097584,1739561433645,-500.0,0.00013698,2]
[353097585,1739561433657,-500.0,0.00013698,2]
[353097586,1739561433668,-500.0,0.00013698,2]
[353097587,1739561433678,-500.0,0.00013698,2]
[353097588,1739561433689,-390.16312571,0.00013698,2]
[353097589,1739561433700,-1446.58,0.00013698,2]
[353097590,1739561433712,-541.21467114,0.00013698,2]
[353097591,1739561433722,-766.01,0.00013698,2]
[353097592,1739561433733,-500.0,0.00013698,2]
[353097593,1739561433744,-500.0,0.00013698,2]
[353097594,1739561433754,-500.0,0.00013698,2]
[353097595,1739561433765,-500.0,0.00013698,2]
[353097596,1739561433777,-500.0,0.00013698,2]
[353097597,1739561433787,-500.0,0.00013698,2]
[353097598,1739561433801,-508.24048055,0.00013698,2]
[353097599,1739561433812,-500.0,0.00013698,2]
[353097600,1739561433823,-500.0,0.00013698,2]
[353097601,1739561433834,-500.0,0.00013698,2]
[353097602,1739561433844,-500.0,0.00013698,2]
[353097603,1739561433855,-500.0,0.00013698,2]
[353097604,1739561433866,-182.62607118,0.00013698,2]
[353097605,1739561433877,-500.0,0.00013698,2]
[353097606,1739561433888,-500.0,0.00013698,2]
[353097607,1739561433898,-500.0,0.00013698,2]
[353097608,1739561433908,-500.0,0.00013698,2]
[353097609,1739561433919,-500.0,0.00013698,2]
[353097610,1739561433930,-500.0,0.00013698,2]
[353097611,1739561433941,-500.0,0.00013698,2]
[353097612,1739561433951,-500.0,0.00013698,2]
[353097613,1739561433961,-500.0,0.00013698,2]
[353097614,1739561433972,-500.0,0.00013698,2]
[353097615,1739561433983,-500.0,0.00013698,2]
[353097616,1739561433993,-500.0,0.00013698,2]
[353097617,1739561434004,-500.0,0.00013698,2]
[353097618,1739561434014,-500.0,0.00013698,2]
[353097619,1739561434025,-500.0,0.00013698,2]
[353097620,1739561434036,-500.0,0.00013698,2]
[353097621,1739561434048,-500.0,0.00013698,2]
[353097622,1739561434059,-429.76614555,0.00013698,2]
[353097623,1739561434079,-70.23385445,0.00013698,2]
[353097624,1739561434089,-500.0,0.00013698,2]
[353097625,1739561434100,-500.0,0.00013698,2]
[353097626,1739561434111,-507.31321814,0.00013698,2]
[353097627,1739561434122,-500.0,0.00013698,2]
[353097628,1739561434133,-500.0,0.00013698,2]
[353097629,1739561434143,-488.72,0.00013698,2]
[353097630,1739561434154,-500.0,0.00013698,2]
[353097631,1739561434164,-500.0,0.00013698,2]
[353097632,1739561434173,-500.0,0.00013698,2]
[353097633,1739561434183,-500.0,0.00013698,2]
[353097634,1739561434193,-500.0,0.00013698,2]
[353097635,1739561434202,-500.0,0.00013698,2]
[353097636,1739561434212,-500.0,0.00013698,2]
[353097637,1739561434222,-216.87386038,0.00013698,2]
[353097638,1739561434232,-500.0,0.00013698,2]
[353097639,1739561434241,-506.34203787,0.00013698,2]
[353097640,1739561434252,-1230.45,0.00013698,2]
[353097641,1739561434262,-626.53,0.00013698,2]
[353097642,1739561434272,-500.0,0.00013698,2]
[353097643,1739561434282,-500.0,0.00013698,2]
[353097644,1739561434292,-500.0,0.00013698,2]
[353097645,1739561434306,-503.10285857,0.00013698,2]
[353097646,1739561434316,-500.0,0.00013698,2]
[353097647,1739561434327,-500.0,0.00013698,2]
[353097648,1739561434337,-500.0,0.00013698,2]
[353097649,1739561434348,-1531.17,0.00013698,2]
[353097650,1739561434358,-500.0,0.00013698,2]
[353097651,1739561434368,-500.0,0.00013698,2]
[353097652,1739561434380,-500.0,0.00013698,2]
[353097653,1739561434390,-500.0,0.00013698,2]
[353097654,1739561434401,-500.0,0.00013698,2]
[353097655,1739561434411,-5805.22,0.00013698,2]
[353097656,1739561434422,-500.0,0.00013698,2]
[353097657,1739561434432,-500.0,0.00013698,2]
[353097658,1739561434442,-500.0,0.00013698,2]
[353097659,1739561434451,-3134.94,0.00013698,2]
[353097660,1739561434461,-500.0,0.00013698,2]
[353097661,1739561434471,-500.0,0.00013698,2]
[353097662,1739561434481,-500.0,0.00013698,2]
[353097663,1739561434491,-3977.06,0.00013698,2]
[353097664,1739561434500,-500.0,0.00013698,2]
[353097665,1739561434514,-502.86180634,0.00013698,2]
[353097666,1739561434527,-500.0,0.00013698,2]
[353097667,1739561434544,-500.0,0.00013698,2]
[353097668,1739561434556,-510.09,0.00013698,2]
[353097669,1739561434569,-500.0,0.00013698,2]
[353097670,1739561434579,-500.0,0.00013698,2]
[353097671,1739561434589,-4748.08,0.00013698,2]
[353097672,1739561434599,-500.0,0.00013698,2]
[353097673,1739561434610,-4015.69,0.00013698,2]
[353097674,1739561434620,-1172.21,0.00013698,2]
[353097675,1739561434631,-2419.95,0.00013698,2]
[353097676,1739561434641,-500.0,0.00013698,2]
[353097677,1739561434651,-506.33584385,0.00013698,2]
[353097678,1739561434661,-7802.69,0.00013698,2]
[353097679,1739561434672,-504.3178462,0.00013698,2]
[353097680,1739561434681,-500.0,0.00013698,2]
[353097681,1739561434691,-500.0,0.00013698,2]
[353097682,1739561434701,-500.0,0.00013698,2]
[353097683,1739561434711,-500.0,0.00013698,2]
[353097684,1739561434722,-500.0,0.00013698,2]
[353097685,1739561434731,-444.57651355,0.00013698,2]
[353097686,1739561434741,-500.48946921,0.00013698,2]
[353097687,1739561434751,-500.0,0.00013698,2]
[353097688,1739561434762,-500.0,0.00013698,2]
[353097689,1739561434772,-500.0,0.00013698,2]
[353097690,1739561434782,-500.0,0.00013698,2]
[353097691,1739561434793,-500.0,0.00013698,2]
[353097692,1739561434805,-500.0,0.00013698,2]
[353097693,1739561434815,-500.0,0.00013698,2]
[353097694,1739561434825,-500.0,0.00013698,2]
[353097695,1739561434835,-14224.73,0.00013698,2]
[353097696,1739561434845,-500.0,0.00013698,2]
[353097697,1739561434855,-500.0,0.00013698,2]
[353097698,1739561434864,-500.0,0.00013698,2]
[353097699,1739561434874,-500.0,0.00013698,2]
[353097700,1739561434884,-510.38,0.00013698,2]
[353097701,1739561434896,-500.0,0.00013698,2]
[353097702,1739561434905,-500.0,0.00013698,2]
[353097703,1739561434916,-500.0,0.00013698,2]
[353097704,1739561434925,-500.0,0.00013698,2]
[353097705,1739561434935,-500.0,0.00013698,2]
[353097706,1739561434945,-500.0,0.00013698,2]
[353097707,1739561434954,-500.0,0.00013698,2]
[353097708,1739561434963,-500.0,0.00013698,2]
[353097709,1739561434973,-500.0,0.00013698,2]
[353097710,1739561434983,-1673.38,0.00013698,2]
[353097711,1739561434993,-714.0,0.00013698,2]
[353097712,1739561435003,-500.0,0.00013698,2]
[353097713,1739561435013,-500.0,0.00013698,2]
[353097714,1739561435023,-1498.28,0.00013698,2]
[353097715,1739561435033,-500.0,0.00013698,2]
[353097716,1739561435043,-500.0,0.00013698,2]
[353097717,1739561435169,-943.31,0.00013698,2]
[353097718,1739561435180,-1485.47,0.00013698,2]
[353097719,1739561435190,-500.0,0.00013698,2]
[353097720,1739561435200,-527.11547654,0.00013698,2]
[353097721,1739561435210,-6120.85,0.00013698,2]
[353097722,1739561435220,-500.0,0.00013698,2]
[353097723,1739561435230,-500.0,0.00013698,2]
[353097724,1739561435240,-500.0,0.00013698,2]
[353097725,1739561435250,-4496.4,0.00013698,2]
[353097726,1739561435260,-500.0,0.00013698,2]
[353097727,1739561435269,-500.0,0.00013698,2]
[353097728,1739561435279,-500.0,0.00013698,2]
[353097729,1739561435290,-2042.07,0.00013698,2]
[353097730,1739561435303,-2042.07,0.00013698,2]
[353097731,1739561435313,-2042.07,0.00013698,2]
[353097732,1739561435322,-2042.07,0.00013698,2]
[353097733,1739561435332,-2042.07,0.00013698,2]
[353097734,1739561435342,-500.0,0.00013698,2]
[353097735,1739561435352,-500.28032455,0.00013698,2]
[353097736,1739561435362,-2042.07,0.00013698,2]
[353097737,1739561435372,-2042.07,0.00013698,2]
[353097738,1739561435382,-500.0,0.00013698,2]
[353097739,1739561435391,-2042.07,0.00013698,2]
[353097740,1739561435400,-2042.07,0.00013698,2]
[353097741,1739561435410,-2042.07,0.00013698,2]
[353097742,1739561435419,-2042.07,0.00013698,2]
[353097743,1739561435429,-837.97,0.00013698,2]
[353097744,1739561435438,-2042.07,0.00013698,2]
[353097745,1739561435448,-2042.07,0.00013698,2]
[353097746,1739561435458,-2042.07,0.00013698,2]
[353097747,1739561435468,-2042.07,0.00013698,2]
[353097748,1739561435478,-2042.07,0.00013698,2]
[353097749,1739561435487,-194.66946926,0.00013698,2]
[353097750,1739561435497,-2042.07,0.00013698,2]
[353097751,1739561435507,-2042.07,0.00013698,2]
[353097752,1739561435521,-2042.07,0.00013698,2]
[353097753,1739561435530,-500.0,0.00013698,2]
[353097754,1739561435539,-2512.16,0.00013698,2]
[353097755,1739561435551,-500.0,0.00013698,2]
[353097756,1739561435561,-500.0,0.00013698,2]
[353097757,1739561435571,-54044.55,0.00013698,2]
[353097758,1739561435580,-500.0,0.00013698,2]
[353097759,1739561435592,-2285.63,0.00013698,2]
[353097760,1739561435601,-1884.47,0.00013698,2]
[353097761,1739561435611,-500.0,0.00013698,2]
[353097762,1739561435620,-500.0,0.00013698,2]
[353097763,1739561435629,-500.0,0.00013698,2]
[353097764,1739561435639,-500.0,0.00013698,2]
[353097765,1739561435648,-500.0,0.00013698,2]
[353097766,1739561435657,-500.0,0.00013698,2]
[353097767,1739561435667,-500.0,0.00013698,2]
[353097768,1739561435676,-500.0,0.00013698,2]
[353097769,1739561435685,-500.0,0.00013698,2]
[353097770,1739561435695,-500.0,0.00013698,2]
[353097771,1739561435704,-500.0,0.00013698,2]
[353097772,1739561435714,-500.0,0.00013698,2]
[353097773,1739561435723,-2860.7,0.00013698,2]
[353097774,1739561435733,-500.0,0.00013698,2]
[353097775,1739561435742,-500.0,0.00013698,2]
[353097776,1739561435752,-500.0,0.00013698,2]
[353097777,1739561435762,-500.0,0.00013698,2]
[353097778,1739561435771,-500.0,0.00013698,2]
[353097779,1739561435780,-352.28159962,0.00013698,2]
[353097780,1739561435789,-500.0,0.00013698,2]
[353097781,1739561435799,-500.0,0.00013698,2]
[353097782,1739561435808,-2172.55,0.00013698,2]
[353097783,1739561435818,-2172.55,0.00013698,2]
[353097784,1739561435827,-2172.55,0.00013698,2]
[353097785,1739561435836,-2172.55,0.00013698,2]
[353097786,1739561435846,-2172.55,0.00013698,2]
[353097787,1739561435857,-2172.55,0.00013698,2]
[353097788,1739561435868,-500.0,0.00013698,2]
[353097789,1739561435878,-2172.55,0.00013698,2]
[353097790,1739561435887,-791.34,0.00013698,2]
[353097791,1739561435896,-2172.55,0.00013698,2]
[353097792,1739561435906,-2172.55,0.00013698,2]
[353097793,1739561435916,-2172.55,0.00013698,2]
[353097794,1739561435925,-2172.55,0.00013698,2]
[353097795,1739561435936,-1728.7,0.00013698,2]
[353097796,1739561435947,-2172.55,0.00013698,2]
[353097797,1739561435959,-2172.55,0.00013698,2]
[353097798,1739561435968,-2172.55,0.00013698,2]
[353097799,1739561435979,-500.0,0.00013698,2]
[353097800,1739561435989,-500.0,0.00013698,2]
[353097801,1739561435999,-2172.55,0.00013698,2]
[353097802,1739561436009,-2172.55,0.00013698,2]
[353097803,1739561436018,-2172.55,0.00013698,2]
[353097804,1739561436028,-2172.55,0.00013698,2]
[353097805,1739561436039,-500.0,0.00013698,2]
[353097806,1739561436049,-1838.72,0.00013698,2]
[353097807,1739561436059,-500.0,0.00013698,2]
[353097808,1739561436068,-500.0,0.00013698,2]
[353097809,1739561436078,-884.7,0.00013698,2]
[353097810,1739561436090,-500.0,0.00013698,2]
[353097811,1739561436099,-500.0,0.00013698,2]
[353097812,1739561436110,-21347.25,0.00013698,2]
[353097813,1739561436120,-500.0,0.00013698,2]
[353097814,1739561436132,-758.95,0.00013698,2]
[353097815,1739561436142,-500.0,0.00013698,2]
[353097816,1739561436151,-500.0,0.00013698,2]
[353097817,1739561436161,-523.95525576,0.00013698,2]
[353097818,1739561436170,-500.0,0.00013698,2]
[353097819,1739561436179,-900.44723454,0.00013698,2]
[353097850,1739561441604,-1987.56276546,0.00013698,2]
[353097851,1739561441616,-582.65,0.00013698,2]
[353097852,1739561441754,-500.0,0.00013698,2]
[353097853,1739561441764,-655.07,0.00013698,2]
[353097855,1739561441774,-537.05,0.00013698,2]
[353097857,1739561441784,-500.98793775,0.00013698,2]
[353097859,1739561441794,-500.0,0.00013698,2]
[353097861,1739561441803,-500.0,0.00013698,2]
[353097863,1739561441814,-2572.72,0.00013698,2]
[353097865,1739561441824,-516.87827575,0.00013698,2]
[353097867,1739561441833,-500.0,0.00013698,2]
[353097869,1739561441843,-500.0,0.00013698,2]
[353097871,1739561441853,-502.48267641,0.00013698,2]
[353097873,1739561441863,-500.0,0.00013698,2]
[353097875,1739561441872,-500.0,0.00013698,2]
[353097877,1739561441882,-500.0,0.00013698,2]
[353097879,1739561441891,-500.0,0.00013698,2]
[353097881,1739561441901,-500.0,0.00013698,2]
[353097883,1739561441912,-4466.06,0.00013698,2]
[353097885,1739561441921,-500.0,0.00013698,2]
[353097887,1739561441931,-825.99,0.00013698,2]
[353097889,1739561441941,-500.0,0.00013698,2]
[353097891,1739561441951,-500.51122662,0.00013698,2]
[353097893,1739561441960,-500.0,0.00013698,2]
[353097895,1739561441969,-5055.41,0.00013698,2]
[353097897,1739561441979,-500.0,0.00013698,2]
[353097899,1739561441990,-500.0,0.00013698,2]
[353097901,1739561441999,-500.0,0.00013698,2]
[353097903,1739561442010,-500.0,0.00013698,2]
[353097905,1739561442020,-500.0,0.00013698,2]
[353097907,1739561442031,-462.66210424,0.00013698,2]
[353097909,1739561442040,-500.0,0.00013698,2]
[353097911,1739561442049,-500.0,0.00013698,2]
[353097913,1739561442060,-500.0,0.00013698,2]
[353097915,1739561442070,-500.0,0.00013698,2]
[353097917,1739561442079,-740.13,0.00013698,2]
[353097919,1739561442089,-740.81,0.00013698,2]
[353097921,1739561442098,-500.0,0.00013698,2]
[353097923,1739561442108,-2504.98,0.00013698,2]
[353097925,1739561442118,-500.0,0.00013698,2]
[353097927,1739561442127,-500.0,0.00013698,2]
[353097929,1739561442137,-646.45,0.00013698,2]
[353097931,1739561442146,-500.0,0.00013698,2]
[353097933,1739561442157,-500.0,0.00013698,2]
[353097935,1739561442167,-500.0,0.00013698,2]
[353097937,1739561442177,-773.89,0.00013698,2]
[353097939,1739561442187,-1345.02,0.00013698,2]
[353097941,1739561442197,-1385.94,0.00013698,2]
[353097943,1739561442206,-629.83837481,0.00013698,2]
[353097945,1739561442216,-515.94238992,0.00013698,2]
[353097947,1739561442225,-500.0,0.00013698,2]
[353097949,1739561442235,-756.10401094,0.00013698,2]
[353098319,1739562633851,-208.776684,0.00010685,2]
[353098321,1739562633862,-164.8573875,0.00010959,2]
[353098323,1739562633874,-607.1426125,0.00010959,2]
[353098325,1739562633883,-6243.1238659,0.0001263,2]
[353098327,1739562633893,-300.0,0.00013043,2]
[353098329,1739562633906,-49.04610239,0.00013044,2]
[353098331,1739562633919,-291.37338982,0.00013044,2]
[353098333,1739562633931,-1021.26987844,0.00013044,2]
[353098335,1739562633941,-638.31062935,0.00013044,2]
[353098337,1739562633951,-800.0,0.00013144,2]
[353098339,1739562633962,-7438.69753278,0.00013333,2]
[353098341,1739562633972,-354.6741197,0.000134,2]
[353098343,1739562633983,-500.0,0.00013538,2]
[353098345,1739562633992,-3000.0,0.00013599,2]
[353098348,1739562634002,-354.9899569,0.000136,2]
[353098350,1739562634012,-354.9899569,0.000136,2]
[353098352,1739562634022,-354.9899569,0.000136,2]
[353098353,1739562634031,-353.9006731,0.000136,2]
[353098355,1739562634041,-709.8219952,0.000136,2]
[353098357,1739562634050,-354.9899569,0.000136,2]
[353098358,1739562634060,-354.9899569,0.000136,2]
[353098359,1739562634070,-354.9899569,0.000136,2]
[353098361,1739562634080,-215.8799648,0.00013616,2]
[353098362,1739562634090,-215.9231093,0.00013616,2]
[353098364,1739562634100,-154.666516,0.00013616,2]
[353098366,1739562634110,-154.666516,0.00013616,2]
[353098367,1739562634121,-215.9231093,0.00013616,2]
[353098368,1739562634130,-154.666516,0.00013616,2]
[353098370,1739562634140,-215.2519365,0.00013616,2]
[353098371,1739562634150,-154.666516,0.00013616,2]
[353098373,1739562634160,-336.1244397,0.00013662,2]
[353098375,1739562634170,-1214.37788273,0.0001368,2]
[353098389,1739562634308,-621.5,0.00013681,2]
[353098391,1739562634319,-151.0,0.0001369,2]
[353098393,1739562634328,-2000.0,0.0001369,2]
[353098395,1739562634338,-245.82451804,0.00013697,2]
[353098397,1739562634348,-215.31304945,0.00013697,2]
[353098399,1739562634357,-500.0,0.00013697,2]
[353098401,1739562634368,-500.0,0.00013697,2]
[353098402,1739562634378,-401.69703633,0.00013697,2]
[353098404,1739562634388,-500.0,0.00013697,2]
[353098406,1739562634398,-500.0,0.00013697,2]
[353098408,1739562634407,-168.25078699,0.00013697,2]
[353098410,1739562634417,-565.85580065,0.00013697,2]
[353098412,1739562634428,-500.0,0.00013697,2]
[353098414,1739562634438,-495.22083222,0.00013697,2]
[353098416,1739562634447,-500.0,0.00013697,2]
[353098418,1739562634457,-500.0,0.00013697,2]
[353098420,1739562634467,-318.94365042,0.00013697,2]
[353098422,1739562634478,-241.26122052,0.00013697,2]
[353098424,1739562634487,-456.65338561,0.00013697,2]
[353098426,1739562634497,-23961.26853451,0.00013698,5]
[353098428,1739562634506,-67579.72787466,0.00013698,5]
[353098430,1739562634516,-500.0,0.00013698,2]
[353098432,1739562634525,-500.0,0.00013698,2]
[353098434,1739562634536,-500.0,0.00013698,2]
[353098436,1739562634545,-500.0,0.00013698,2]
[353098438,1739562634554,-587.43218561,0.00013698,2]
[353098440,1739562634564,-325.16079662,0.00013698,2]
[353098442,1739562634573,-500.18085422,0.00013698,2]
[353098444,1739562634583,-500.0,0.00013698,2]
[353098445,1739562634593,-500.0,0.00013698,2]
[353098447,1739562634603,-500.0,0.00013698,2]
[353098450,1739562634613,-500.0,0.00013698,2]
[353098451,1739562634624,-500.0,0.00013698,2]
[353098453,1739562634633,-553.45754452,0.00013698,2]
[353098455,1739562634643,-505.12203579,0.00013698,2]
[353098457,1739562634653,-500.0,0.00013698,2]
[353098459,1739562634662,-500.0,0.00013698,2]
[353098461,1739562634671,-500.95300771,0.00013698,2]
[353098463,1739562634680,-505.62645514,0.00013698,2]
[353098465,1739562634690,-500.0,0.00013698,2]
[353098467,1739562634699,-501.36615242,0.00013698,2]
[353098469,1739562634708,-500.0,0.00013698,2]
[353098471,1739562634718,-500.0,0.00013698,2]
[353098472,1739562634727,-596.35,0.00013698,2]
[353098474,1739562634736,-502.80385765,0.00013698,2]
[353098476,1739562634746,-500.0,0.00013698,2]
[353098478,1739562634755,-228.3018039,0.00013698,2]
[353098480,1739562634764,-500.0,0.00013698,2]
[353098482,1739562634774,-500.0,0.00013698,2]
[353098484,1739562634783,-500.0,0.00013698,2]
[353098486,1739562634792,-503.82662812,0.00013698,2]
[353098488,1739562634802,-500.0,0.00013698,2]
[353098490,1739562634811,-500.0,0.00013698,2]
[353098492,1739562634821,-500.0,0.00013698,2]
[353098494,1739562634830,-500.0,0.00013698,2]
[353098496,1739562634839,-500.0,0.00013698,2]
[353098498,1739562634849,-598.58797029,0.00013698,2]